bitfinex-derivatives/quotes_BTCF0:USTF0_20241221
["timestamp","ask_amount","ask_price","bid_price","bid_amount"]
[1734823586599,0.051491,97156.0,97154.0,0.30809189]
[1734823586799,0.37926727,97155.0,97154.0,0.30809189]
[1734823587299,0.37926727,97155.0,97154.0,0.20829189]
[1734823587499,0.051495,97149.0,97148.0,0.36969832]
[1734823587692,0.06996196,97149.0,97148.0,0.36969832]
[1734823587887,0.06996258,97149.0,97148.0,0.36969832]
[1734823588299,0.051501,97138.0,97137.0,0.00136]
[1734823588600,0.051501,97138.0,97126.0,0.36969832]
[1734823588601,0.051507,97127.0,97126.0,0.36969832]
[1734823590203,0.051509,97124.0,97121.0,0.06216071]
[1734823590688,0.051509,97123.0,97121.0,0.06216071]
[1734823591300,0.051509,97123.0,97121.0,0.06616071]
[1734823591506,0.051509,97123.0,97121.0,0.01965071]
[1734823592003,0.051509,97123.0,97121.0,0.009]
[1734823592298,0.3608,97122.0,97121.0,0.009]
[1734823594599,0.051506,97129.0,97121.0,0.009]
[1734823594806,0.051506,97129.0,97127.0,0.051506]
[1734823595001,0.051506,97129.0,97128.0,0.0303]
[1734823596494,0.051502,97136.0,97128.0,0.0303]
[1734823596694,0.051503,97135.0,97128.0,0.081806]
[1734823597006,0.3608,97141.0,97128.0,0.081806]
[1734823597506,0.051504,97134.0,97128.0,0.086806]
[1734823598304,0.3608,97141.0,97128.0,0.084806]
[1734823598507,0.051504,97133.0,97128.0,0.086806]
[1734823599012,0.051505,97130.0,97128.0,0.0353]
[1734823601010,0.051505,97130.0,97128.0,0.005]
[1734823607302,0.051505,97130.0,97129.0,0.0306]
[1734823608411,0.051505,97130.0,97129.0,0.0326]
[1734823609714,0.051505,97130.0,97129.0,0.0346]
[1734823611707,0.3608,97133.0,97129.0,0.0346]
[1734823611903,0.3608,97133.0,97132.0,0.051504]
[1734823612106,0.14388366,97136.0,97135.0,0.051503]
[1734823613309,0.051502,97136.0,97135.0,0.051503]
[1734823614118,0.052502,97136.0,97135.0,0.051503]
[1734823614715,0.01943822,97136.0,97135.0,0.051503]
[1734823615021,0.001,97136.0,97135.0,0.052503]
[1734823615615,0.04348166,97138.0,97137.0,0.051502]
[1734823615922,0.3608,97141.0,97139.0,0.0515]
[1734823616325,0.01013176,97140.0,97139.0,0.0515]
[1734823617414,0.002,97141.0,97139.0,0.0515]
[1734823617616,0.01013176,97140.0,97139.0,0.0515]
[1734823617810,0.01013176,97144.0,97139.0,0.0515]
[1734823618014,0.002,97140.0,97139.0,0.0515]
[1734823618215,0.002,97140.0,97139.0,0.0525]
[1734823620027,0.001,97141.0,97139.0,0.0525]
[1734823621014,0.01013176,97142.0,97139.0,0.0525]
[1734823621218,0.001,97140.0,97139.0,0.001]
[1734823621420,0.01113176,97140.0,97139.0,0.001]
[1734823621722,0.01845872,97140.0,97139.0,0.001]
[1734823621921,0.01013176,97140.0,97139.0,0.001]
[1734823622110,0.01013176,97140.0,97136.0,0.066]
[1734823622315,0.01013176,97139.0,97136.0,0.066]
[1734823622526,0.0525,97141.0,97136.0,0.066]
[1734823622527,0.01013176,97138.0,97136.0,0.066]
[1734823622719,0.051502,97137.0,97136.0,0.066]
[1734823622919,0.06165196,97137.0,97136.0,0.0329]
[1734823623227,0.051503,97134.0,97133.0,0.01013518]
[1734823623430,0.051503,97134.0,97129.0,0.00136]
[1734823623431,0.01846996,97134.0,97127.0,0.30839041]
[1734823623615,0.01846996,97133.0,97127.0,0.30839041]
[1734823623812,0.051506,97128.0,97127.0,0.30839041]
[1734823624017,0.06165596,97128.0,97127.0,0.30839041]
[1734823624224,0.43077596,97128.0,97127.0,0.30839041]
[1734823624426,0.43077596,97128.0,97111.0,0.0314]
[1734823624427,0.43077596,97128.0,97119.0,0.30839041]
[1734823624616,0.051511,97120.0,97119.0,0.30839041]
[1734823624818,0.06166096,97120.0,97119.0,0.30839041]
[1734823626031,0.06166096,97120.0,97119.0,0.003]
[1734823627025,0.06166096,97120.0,97119.0,0.009]
[1734823628222,0.06168495,97120.0,97119.0,0.009]
[1734823630225,0.051511,97120.0,97119.0,0.009]
[1734823630424,0.06168495,97120.0,97119.0,0.009]
[1734823631730,0.06166543,97120.0,97119.0,0.009]
[1734823632424,0.06997801,97120.0,97119.0,0.009]
[1734823632626,0.06166543,97120.0,97119.0,0.009]
[1734823632825,0.43077801,97120.0,97119.0,0.009]
[1734823635640,0.37095443,97120.0,97119.0,0.009]
[1734823635830,0.37926701,97120.0,97119.0,0.009]
[1734823636136,0.3608,97120.0,97119.0,0.009]
[1734823636326,0.15432161,97123.0,97119.0,0.009]
[1734823636327,0.15432161,97123.0,97122.0,0.051509]
[1734823636531,0.00831297,97124.0,97122.0,0.051509]
[1734823636939,0.00831297,97124.0,97123.0,0.0311]
[1734823637624,0.17432857,97130.0,97125.0,0.051508]
[1734823637829,0.051505,97130.0,97128.0,0.051506]
[1734823639942,0.052505,97130.0,97128.0,0.051506]
[1734823640439,0.052505,97130.0,97126.0,0.0316]
[1734823640440,0.001,97130.0,97129.0,0.051506]
[1734823641133,0.001,97130.0,97128.0,0.051506]
[1734823641537,0.001,97130.0,97128.0,0.412306]
[1734823642730,0.051497,97145.0,97138.0,0.051501]
[1734823643145,0.051497,97145.0,97139.0,0.0515]
[1734823643530,0.051497,97145.0,97129.0,0.001]
[1734823643726,0.001,97145.0,97142.0,0.051499]
[1734823646040,0.001,97145.0,97143.0,0.051498]
[1734823646241,0.002,97145.0,97143.0,0.051498]
[1734823647139,0.001,97145.0,97143.0,0.051498]
[1734823647437,0.002,97145.0,97143.0,0.051498]
[1734823662444,0.002,97145.0,97144.0,0.051498]
[1734823663445,0.051497,97146.0,97136.0,0.37106807]
[1734823663643,0.002,97145.0,97136.0,0.37106807]
[1734823663947,0.002,97145.0,97144.0,0.051498]
[1734823664451,0.053497,97145.0,97144.0,0.051498]
[1734823665159,0.051497,97145.0,97144.0,0.051498]
[1734823665652,0.052497,97145.0,97144.0,0.051498]
[1734823665950,0.053497,97145.0,97144.0,0.051498]
[1734823666154,0.06182897,97145.0,97144.0,0.051498]
[1734823668952,0.18465254,97145.0,97144.0,0.051498]
[1734823669157,0.18465107,97145.0,97144.0,0.051498]
[1734823670358,0.0618275,97145.0,97144.0,0.051498]
[1734823671652,0.053497,97145.0,97144.0,0.051498]
[1734823671955,0.06182878,97145.0,97144.0,0.051498]
[1734823678057,0.0618417,97145.0,97144.0,0.051498]
[1734823678559,0.0103447,97145.0,97144.0,0.051498]
[1734823678758,0.0103447,97145.0,97144.0,0.114698]
[1734823683054,0.02057704,97145.0,97144.0,0.114698]
[1734823686260,0.14352775,97145.0,97144.0,0.114698]
[1734823686468,0.14352619,97145.0,97144.0,0.114698]
[1734823687764,0.2357991,97156.0,97150.0,0.051495]
[1734823687765,0.15006353,97151.0,97150.0,0.051495]
[1734823687962,0.1843071,97156.0,97154.0,0.051493]
[1734823688165,0.1843071,97156.0,97155.0,0.39963039]
[1734823688466,0.1843071,97156.0,97155.0,0.3608]
[1734823689062,0.051483,97173.0,97155.0,0.58131062]
[1734823689262,0.051483,97173.0,97165.0,0.3608]
[1734823690158,0.051483,97173.0,97165.0,0.412286]
[1734823690370,0.052483,97173.0,97165.0,0.413286]
[1734823690667,0.055483,97173.0,97165.0,0.413286]
[1734823691468,0.055483,97173.0,97166.0,0.051486]
[1734823692056,0.055483,97173.0,97165.0,0.3618]
[1734823692269,0.004,97173.0,97170.0,0.051484]
[1734823692865,0.003,97173.0,97170.0,0.051484]
[1734823693255,0.08188,97178.0,97170.0,0.051484]
[1734823693454,0.003,97173.0,97170.0,0.052484]
[1734823693661,0.003,97173.0,97171.0,0.051483]
[1734823694061,0.0304,97178.0,97170.0,0.001]
[1734823694263,0.003,97173.0,97171.0,0.051483]
[1734823694768,0.0304,97178.0,97170.0,0.001]
[1734823694967,0.003,97173.0,97171.0,0.051483]
[1734823695175,0.003,97173.0,97171.0,0.052483]
[1734823696870,0.3608,97187.0,97182.0,0.051478]
[1734823697062,0.051476,97186.0,97182.0,0.051478]
[1734823698971,0.051476,97186.0,97182.0,0.052478]
[1734823699274,0.051476,97186.0,97182.0,0.001]
[1734823699585,0.003,97186.0,97184.0,0.051476]
[1734823700872,0.003,97186.0,97185.0,0.0627]
[1734823702171,0.0309,97195.0,97185.0,0.0627]
[1734823702375,0.0309,97195.0,97194.0,0.051471]
[1734823702770,0.01056491,97206.0,97185.0,0.07404863]
[1734823703078,0.01056491,97206.0,97199.0,0.051469]
[1734823703773,0.06202991,97206.0,97199.0,0.051469]
[1734823703975,0.103,97200.0,97199.0,0.051469]
[1734823705577,0.103,97200.0,97199.0,0.053469]
[1734823710075,0.103,97200.0,97199.0,0.002]
[1734823715381,0.12127537,97200.0,97179.0,0.54501636]
[1734823715586,0.051479,97180.0,97179.0,0.54501636]
[1734823716175,0.0615275,97180.0,97179.0,0.54501636]
[1734823717181,0.06978424,97180.0,97179.0,0.3608]
[1734823717775,0.07078424,97180.0,97179.0,0.3618]
[1734823717975,0.07078424,97180.0,97179.0,0.3628]
[1734823718777,0.07378424,97180.0,97179.0,0.3618]
[1734823718982,0.07380833,97180.0,97179.0,0.3618]
[1734823719281,0.07380833,97180.0,97179.0,0.54601636]
[1734823721186,0.055479,97180.0,97179.0,0.54601636]
[1734823722095,0.055479,97180.0,97179.0,0.3618]
[1734823722475,0.055479,97180.0,97179.0,0.001]
[1734823726075,0.004,97180.0,97179.0,0.001]
[1734823729279,0.38314583,97180.0,97179.0,0.18521636]
[1734823730576,0.38314583,97180.0,97179.0,0.001]
[1734823736994,0.38313845,97180.0,97179.0,0.001]
[1734823740086,0.38314437,97180.0,97179.0,0.001]
[1734823740286,0.37486789,97180.0,97179.0,0.001]
[1734823740501,0.37487226,97180.0,97179.0,0.001]
[1734823740993,0.3648,97180.0,97179.0,0.001]
[1734823741197,0.37487226,97180.0,97179.0,0.001]
[1734823742186,0.01407226,97180.0,97179.0,0.001]
[1734823743498,0.06555126,97180.0,97179.0,0.001]
[1734823744501,0.07382774,97180.0,97179.0,0.001]
[1734823744704,0.06555126,97180.0,97179.0,0.001]
[1734823745198,0.06556767,97180.0,97179.0,0.001]
[1734823745391,0.07384743,97180.0,97179.0,0.001]
[1734823748796,0.08443426,97180.0,97179.0,0.001]
[1734823749106,0.44523426,97180.0,97179.0,0.001]
[1734823750199,0.43464743,97180.0,97179.0,0.001]
[1734823751403,0.43464631,97180.0,97179.0,0.001]
[1734823754404,0.43465042,97180.0,97179.0,0.001]
[1734823756802,0.43465042,97180.0,97179.0,0.18521636]
[1734823757495,0.43465565,97180.0,97179.0,0.18521636]
[1734823758897,0.43465565,97180.0,97179.0,0.23669536]
[1734823759209,0.43465565,97180.0,97179.0,0.052479]
[1734823760512,0.43465797,97180.0,97179.0,0.052479]
[1734823760907,0.0738589,97180.0,97179.0,0.052479]
[1734823762205,0.4346589,97180.0,97179.0,0.052479]
[1734823762705,0.43466668,97180.0,97179.0,0.052479]
[1734823763410,0.42457184,97180.0,97179.0,0.052479]
[1734823763612,0.43466654,97180.0,97179.0,0.052479]
[1734823764203,0.43466654,97180.0,97179.0,0.001]
[1734823766716,0.48471807,97180.0,97179.0,0.001]
[1734823767407,0.051479,97179.0,97178.0,0.18528632]
[1734823767616,0.13416654,97179.0,97178.0,0.18528632]
[1734823767807,0.13416654,97179.0,97178.0,0.13538632]
[1734823768118,0.051481,97176.0,97175.0,0.13538632]
[1734823768318,0.06986854,97176.0,97175.0,0.13538632]
[1734823768511,0.43066854,97176.0,97175.0,0.13538632]
[1734823768720,0.43066854,97176.0,97175.0,1e-08]
[1734823769516,0.42439552,97176.0,97175.0,1e-08]
[1734823769711,0.43267229,97176.0,97175.0,1e-08]
[1734823769908,0.051486,97166.0,97153.0,0.24665907]
[1734823770109,0.43066586,97166.0,97153.0,0.24665907]
[1734823771218,0.43266586,97166.0,97165.0,0.00112496]
[1734823771527,0.43566586,97166.0,97165.0,0.00112496]
[1734823771712,0.48571739,97166.0,97165.0,0.00112496]
[1734823772617,0.48570734,97166.0,97165.0,0.00112496]
[1734823773613,0.48570734,97166.0,97165.0,1e-08]
[1734823774020,0.5890545,97166.0,97165.0,1e-08]
[1734823774625,0.59968177,97166.0,97165.0,1e-08]
[1734823774922,0.59967958,97166.0,97165.0,1e-08]
[1734823775320,0.44628089,97166.0,97165.0,1e-08]
[1734823775511,0.44627898,97166.0,97165.0,1e-08]
[1734823776711,0.49634298,97166.0,97165.0,1e-08]
[1734823777321,0.4880855,97166.0,97165.0,1e-08]
[1734823778023,0.44627898,97166.0,97165.0,1e-08]
[1734823778323,0.4380215,97166.0,97165.0,1e-08]
[1734823778822,0.43796596,97166.0,97165.0,1e-08]
[1734823779025,0.43796606,97166.0,97165.0,1e-08]
[1734823779214,0.59117247,97166.0,97165.0,1e-08]
[1734823780822,0.5994345,97166.0,97165.0,1e-08]
[1734823781624,0.59946073,97166.0,97165.0,1e-08]
[1734823782323,0.49632107,97166.0,97165.0,1e-08]
[1734823782527,0.051495,97149.0,97141.0,0.0302]
[1734823782718,0.412295,97149.0,97141.0,0.0302]
[1734823782917,0.412295,97149.0,97142.0,0.04156378]
[1734823784328,0.412295,97149.0,97148.0,0.00254386]
[1734823786118,0.3109,97149.0,97148.0,0.00254386]
[1734823794935,0.09187762,97155.0,97153.0,0.051493]
[1734823795825,0.14336962,97156.0,97148.0,0.00254386]
[1734823796022,0.14336962,97156.0,97154.0,0.051492]
[1734823796536,0.002,97155.0,97154.0,0.051492]
[1734823796835,0.14336962,97156.0,97154.0,0.051492]
[1734823797437,0.01006682,97155.0,97154.0,0.051492]
[1734823797830,0.01106682,97155.0,97154.0,0.051492]
[1734823798032,0.001,97155.0,97154.0,0.051492]
[1734823799335,0.003,97155.0,97154.0,0.051492]
[1734823799536,0.003,97155.0,97154.0,0.29815107]
[1734823800435,0.003,97155.0,97154.0,0.65895107]
[1734823801429,0.003,97155.0,97154.0,0.66921247]
[1734823802343,0.003,97155.0,97154.0,0.73087723]
[1734823802531,0.09215178,97161.0,97160.0,0.051489]
[1734823803726,0.04425178,97161.0,97160.0,0.051489]
[1734823803929,0.004,97161.0,97160.0,0.051489]
[1734823804239,0.004,97161.0,97160.0,0.081989]
[1734823805237,0.004,97161.0,97160.0,0.30758732]
[1734823805936,0.00012496,97166.0,97165.0,0.051487]
[1734823806244,0.00012496,97166.0,97165.0,0.412287]
[1734823806538,0.05161096,97166.0,97165.0,0.3608]
[1734823807040,0.05161096,97166.0,97160.0,0.22559832]
[1734823807041,0.051489,97161.0,97160.0,0.22559832]
[1734823807245,0.051489,97161.0,97160.0,0.17569832]
[1734823807434,0.06155478,97161.0,97160.0,0.17569832]
[1734823807928,0.0597765,97161.0,97160.0,0.17569832]
[1734823808133,0.0597765,97161.0,97148.0,0.00154386]
[1734823808134,0.01835192,97161.0,97148.0,0.00154386]
[1734823808337,0.051495,97150.0,97148.0,0.00154386]
[1734823808539,0.01006442,97149.0,97148.0,0.00154386]
[1734823809833,0.01006442,97149.0,97148.0,0.00254386]
[1734823810442,0.04146442,97149.0,97148.0,0.00254386]
[1734823810838,0.40226442,97149.0,97148.0,0.00254386]
[1734823813444,0.40226442,97149.0,97148.0,0.001]
[1734823813746,0.40226442,97149.0,97131.0,0.2979301]
[1734823813944,0.051503,97134.0,97131.0,0.2464251]
[1734823814357,0.051503,97134.0,97130.0,0.2464251]
[1734823814644,0.051505,97131.0,97130.0,0.2464251]
[1734823814840,0.06198146,97131.0,97130.0,0.2464251]
[1734823815941,0.05160308,97131.0,97117.0,7.736e-05]
[1734823816144,0.051512,97118.0,97117.0,7.736e-05]
[1734823817452,0.051512,97118.0,97117.0,0.01207736]
[1734823818235,0.412312,97118.0,97117.0,0.01207736]
[1734823823551,0.412312,97118.0,97117.0,0.00607736]
[1734823824853,0.412312,97118.0,97117.0,0.00407736]
[1734823825149,0.412312,97118.0,97117.0,0.00207736]
[1734823825547,0.412312,97118.0,97117.0,7.736e-05]
[1734823825754,0.412312,97118.0,97117.0,0.00107736]
[1734823827357,0.051521,97100.0,97099.0,0.00154445]
[1734823828358,0.05164341,97100.0,97099.0,0.00154445]
[1734823828549,0.05164341,97100.0,97099.0,0.00954445]
[1734823828748,0.05164341,97100.0,97099.0,0.01354445]
[1734823830750,0.06197121,97100.0,97099.0,0.01354445]
[1734823831160,0.06197121,97100.0,97099.0,0.00954445]
[1734823831356,0.06197121,97100.0,97099.0,0.01054445]
[1734823831760,0.06197121,97100.0,97099.0,0.00454445]
[1734823836256,0.07230615,97100.0,97099.0,0.00454445]
[1734823838062,0.051531,97082.0,97081.0,0.031]
[1734823839156,0.051531,97082.0,97081.0,0.036]
[1734823839364,0.051531,97082.0,97081.0,0.045]
[1734823844067,0.06187176,97082.0,97081.0,0.045]
[1734823844665,0.06187176,97082.0,97081.0,0.036]
[1734823844967,0.06187176,97082.0,97081.0,0.045]
[1734823846473,0.06182088,97082.0,97081.0,0.045]
[1734823849461,0.06184998,97082.0,97081.0,0.045]
[1734823850270,0.07009574,97082.0,97081.0,0.045]
[1734823850465,0.06184998,97082.0,97081.0,0.045]
[1734823850875,0.07009574,97082.0,97081.0,0.045]
[1734823851065,0.06184998,97082.0,97081.0,0.045]
[1734823851267,0.07009574,97082.0,97081.0,0.045]
[1734823851668,0.07012815,97082.0,97081.0,0.045]
[1734823852075,0.06188511,97082.0,97081.0,0.045]
[1734823852279,0.01859715,97082.0,97081.0,0.045]
[1734823852573,0.018611,97082.0,97081.0,0.045]
[1734823853078,0.00825689,97089.0,97081.0,0.045]
[1734823853278,0.1225035,97090.0,97088.0,0.051528]
[1734823853481,0.00825957,97089.0,97088.0,0.051528]
[1734823854476,0.00825957,97089.0,97088.0,0.006]
[1734823854968,0.05978657,97089.0,97088.0,0.006]
[1734823855170,0.05978657,97089.0,97088.0,0.009]
[1734823858385,0.18229007,97089.0,97088.0,0.009]
[1734823858585,0.18229447,97089.0,97088.0,0.009]
[1734823859083,0.18229448,97089.0,97088.0,0.009]
[1734823859383,0.05979098,97089.0,97088.0,0.009]
[1734823859569,0.05979501,97089.0,97088.0,0.009]
[1734823860982,0.059796,97089.0,97088.0,0.009]
[1734823865287,0.01856147,97089.0,97088.0,0.009]
[1734823865473,0.01856147,97089.0,97088.0,0.060528]
[1734823866383,0.051526,97091.0,97088.0,0.009]
[1734823866586,0.01855088,97090.0,97088.0,0.009]
[1734823866789,0.01855088,97089.0,97088.0,0.060528]
[1734823866980,0.01028626,97089.0,97088.0,0.091028]
[1734823867386,0.01028725,97093.0,97088.0,0.088028]
[1734823867682,0.1225035,97094.0,97093.0,0.051525]
[1734823867881,0.1327943,97094.0,97093.0,0.051525]
[1734823868084,0.1327943,97094.0,97093.0,0.084625]
[1734823868282,0.0102908,97094.0,97093.0,0.084625]
[1734823868884,0.0102908,97094.0,97093.0,0.088625]
[1734823869591,0.01028571,97099.0,97098.0,0.051522]
[1734823870886,0.01028571,97099.0,97098.0,0.053522]
[1734823871484,0.01028571,97099.0,97098.0,0.054522]
[1734823872594,0.00012241,97100.0,97098.0,0.054522]
[1734823872787,0.00012241,97100.0,97099.0,0.033]
[1734823874080,0.00012241,97100.0,97099.0,0.035]
[1734823874487,0.00012241,97100.0,97099.0,0.036]
[1734823885805,0.01030384,97112.0,97111.0,0.051515]
[1734823885997,0.01030384,97112.0,97111.0,0.412315]
[1734823886499,0.01030384,97116.0,97115.0,0.051513]
[1734823886999,0.01036295,97116.0,97115.0,0.051513]
[1734823887792,0.01336295,97116.0,97115.0,0.051513]
[1734823888493,0.01536295,97116.0,97115.0,0.051513]
[1734823889402,0.01536295,97116.0,97115.0,0.23650404]
[1734823889701,0.01536174,97116.0,97115.0,0.23650404]
[1734823890407,0.01536174,97116.0,97115.0,0.051513]
[1734823891303,0.01536174,97116.0,97114.0,0.18499104]
[1734823891498,0.0305,97115.0,97113.0,0.18499104]
[1734823891697,0.05976701,97114.0,97113.0,0.18499104]
[1734823892010,0.08861444,97114.0,97113.0,0.18499104]
[1734823892199,0.09891681,97114.0,97113.0,0.18499104]
[1734823892403,0.04740281,97114.0,97113.0,0.23650504]
[1734823892599,0.04740281,97114.0,97113.0,0.051514]
[1734823892799,0.03915437,97114.0,97113.0,0.051514]
[1734823893898,0.05040281,97114.0,97113.0,0.051514]
[1734823894300,0.05140281,97114.0,97113.0,0.051514]
[1734823894798,0.04315437,97114.0,97113.0,0.051514]
[1734823895299,0.0513297,97114.0,97113.0,0.051514]
[1734823897706,0.05136028,97114.0,97113.0,0.051514]
[1734823898806,0.05136028,97114.0,97108.0,0.24676824]
[1734823899108,0.051516,97110.0,97108.0,0.24676824]
[1734823899309,0.08250828,97109.0,97108.0,0.24676824]
[1734823899697,0.08250828,97109.0,97108.0,0.04906824]
[1734823899895,0.08250828,97109.0,97102.0,0.30855398]
[1734823900098,0.41232,97103.0,97102.0,0.30855398]
[1734823900294,0.43082828,97103.0,97102.0,0.30855398]
[1734823900499,0.05152,97102.0,97101.0,0.1852082]
[1734823900702,0.07002828,97102.0,97101.0,0.1852082]
[1734823901610,0.051525,97093.0,97092.0,0.1852082]
[1734823901911,0.07003328,97093.0,97092.0,0.1852082]
[1734823902800,0.07003328,97093.0,97092.0,0.002]
[1734823903509,0.07003328,97093.0,97092.0,0.007]
[1734823903807,0.42255426,97093.0,97092.0,0.007]
[1734823904011,0.43083103,97093.0,97092.0,0.007]
[1734823906508,0.43283103,97093.0,97092.0,0.002]
[1734823907315,0.05153,97083.0,97082.0,0.01032453]
[1734823907507,0.051532,97080.0,97078.0,0.2162082]
[1734823907711,0.01025044,97079.0,97078.0,0.031]
[1734823909013,0.01025044,97079.0,97078.0,0.033]
[1734823910119,0.01025044,97079.0,97078.0,0.037]
[1734823910509,0.051532,97080.0,97078.0,0.037]
[1734823913619,0.051532,97080.0,97078.0,0.006]
[1734823914135,0.01028694,97079.0,97078.0,0.006]
[1734823915221,0.01025338,97079.0,97078.0,0.006]
[1734823915425,0.103066,97078.0,97061.0,0.0608]
[1734823915726,0.412341,97062.0,97061.0,0.0608]
[1734823916318,0.41242091,97062.0,97061.0,0.0608]
[1734823916515,0.41242091,97062.0,97057.0,0.00154532]
[1734823916728,0.41242091,97062.0,97061.0,0.009]
[1734823917237,0.41242091,97062.0,97061.0,0.014]
[1734823918538,0.41242091,97062.0,97061.0,0.005]
[1734823918737,0.42393087,97062.0,97061.0,0.014]
[1734823920031,0.41342091,97062.0,97061.0,0.009]
[1734823920234,0.41342091,97062.0,97061.0,0.01]
[1734823920734,0.41242091,97062.0,97061.0,0.001]
[1734823920934,0.36252091,97062.0,97061.0,0.001]
[1734823921242,0.05162091,97062.0,97061.0,0.001]
[1734823924337,7.991e-05,97062.0,97061.0,0.001]
[1734823927735,0.09159582,97079.0,97077.0,0.051533]
[1734823927936,0.09159582,97079.0,97078.0,0.4225]
[1734823928348,0.051532,97080.0,97078.0,0.4225]
[1734823929249,0.006,97079.0,97078.0,0.4225]
[1734823929947,0.002,97079.0,97078.0,0.4235]
[1734823930336,0.002,97079.0,97078.0,0.4225]
[1734823930537,0.007,97079.0,97078.0,0.4235]
[1734823930847,0.009,97079.0,97078.0,0.4235]
[1734823931040,0.009,97079.0,97078.0,0.4566]
[1734823931441,0.007,97079.0,97078.0,0.4566]
[1734823932044,0.051532,97080.0,97078.0,0.4556]
[1734823932344,0.001,97079.0,97078.0,0.4556]
[1734823932757,0.003,97079.0,97078.0,0.4556]
[1734823933054,0.004,97079.0,97078.0,0.4556]
[1734823933240,0.001,97079.0,97078.0,0.4556]
[1734823933439,0.001,97079.0,97078.0,0.0948]
[1734823933951,0.01118786,97079.0,97078.0,0.0948]
[1734823934153,0.01119636,97079.0,97078.0,0.0948]
[1734823935446,0.01419636,97079.0,97078.0,0.0948]
[1734823935952,0.01619636,97079.0,97078.0,0.0948]
[1734823936452,0.10779218,97079.0,97078.0,0.0948]
[1734823936951,0.051538,97069.0,97068.0,0.3608]
[1734823937345,0.051539,97066.0,97065.0,0.0307]
[1734823937548,0.051539,97066.0,97065.0,0.04083232]
[1734823938155,0.051539,97066.0,97065.0,0.0307]
[1734823938462,0.412339,97066.0,97065.0,0.0307]
[1734823938646,0.42253536,97066.0,97065.0,0.0307]
[1734823939353,0.42253536,97066.0,97065.0,0.0317]
[1734823939558,0.42253536,97066.0,97065.0,0.0327]
[1734823939754,0.42253536,97066.0,97065.0,0.0317]
[1734823940253,0.42253536,97066.0,97065.0,0.0307]
[1734823940454,0.42353536,97066.0,97065.0,0.0307]
[1734823941649,0.43179082,97066.0,97065.0,0.0307]
[1734823942048,0.55425395,97066.0,97065.0,0.0307]
[1734823942448,0.55425395,97066.0,97060.0,0.00011034]
[1734823942449,0.051542,97061.0,97060.0,0.00011034]
[1734823942651,0.06173836,97061.0,97060.0,0.00011034]
[1734823943648,0.051542,97061.0,97060.0,0.00111034]
[1734823943855,0.06181395,97061.0,97060.0,0.00111034]
[1734823945653,0.06181395,97061.0,97060.0,0.00211034]
[1734823946847,0.06180809,97061.0,97060.0,0.00211034]
[1734823947755,0.0700431,97061.0,97060.0,0.00211034]
[1734823948657,0.06180809,97061.0,97060.0,0.00211034]
[1734823949456,0.0700431,97061.0,97060.0,0.00211034]
[1734823949655,0.06180809,97061.0,97060.0,0.00211034]
[1734823950159,0.06180809,97061.0,97060.0,0.00011034]
[1734823950160,0.06582737,97061.0,97060.0,0.00011034]
[1734823950555,0.07406238,97061.0,97060.0,0.00011034]
[1734823950756,0.06582737,97061.0,97060.0,0.00011034]
[1734823951362,0.07406238,97061.0,97060.0,0.00011034]
[1734823951666,0.06582737,97061.0,97060.0,0.00011034]
[1734823952160,0.055542,97061.0,97060.0,0.00011034]
[1734823952357,0.06582493,97061.0,97060.0,0.00011034]
[1734823953962,0.18827935,97061.0,97060.0,0.00011034]
[1734823955358,0.06582493,97061.0,97060.0,0.00011034]
[1734823956272,0.06578251,97061.0,97060.0,0.00011034]
[1734823957165,0.051544,97056.0,97055.0,0.0319]
[1734823957364,0.051544,97056.0,97044.0,0.033]
[1734823957365,0.05155,97045.0,97044.0,0.033]
[1734823957565,0.06179051,97045.0,97044.0,0.033]
[1734823958164,0.06190085,97045.0,97044.0,0.033]
[1734823958380,0.06190085,97045.0,97038.0,0.18467741]
[1734823958569,0.051554,97039.0,97038.0,0.18467741]
[1734823958874,0.06184464,97039.0,97038.0,0.18467741]
[1734823959063,0.07213528,97039.0,97038.0,0.18467741]
[1734823959868,0.07213528,97039.0,97029.0,0.033]
[1734823960067,0.051558,97030.0,97029.0,0.033]
[1734823961781,0.052558,97030.0,97029.0,0.042]
[1734823962368,0.052558,97030.0,97029.0,0.047]
[1734823962568,0.051558,97030.0,97029.0,0.038]
[1734823962777,0.052558,97030.0,97029.0,0.047]
[1734823964282,0.06284864,97030.0,97029.0,0.047]
[1734823964483,0.06284864,97030.0,97029.0,0.042]
[1734823964687,0.06284864,97030.0,97029.0,0.046]
[1734823964983,0.06293467,97030.0,97029.0,0.046]
[1734823965383,0.052558,97030.0,97029.0,0.044]
[1734823965681,0.051558,97030.0,97029.0,0.038]
[1734823966479,0.06193467,97030.0,97029.0,0.038]
[1734823966675,0.051558,97030.0,97029.0,0.038]
[1734823966883,0.06193467,97030.0,97029.0,0.038]
[1734823967081,0.051558,97030.0,97029.0,0.038]
[1734823967282,0.06193467,97030.0,97029.0,0.038]
[1734823967482,0.051558,97030.0,97029.0,0.038]
[1734823967678,0.06193467,97030.0,97029.0,0.038]
[1734823967885,0.06192136,97030.0,97029.0,0.038]
[1734823968292,0.06192464,97030.0,97029.0,0.038]
[1734823971088,0.15368958,97030.0,97029.0,0.038]
[1734823972488,0.06192464,97030.0,97029.0,0.038]
[1734823973894,0.06188762,97030.0,97029.0,0.038]
[1734823975194,0.0700863,97030.0,97029.0,0.038]
[1734823975392,0.06188762,97030.0,97029.0,0.038]
[1734823975788,0.01032962,97032.0,97029.0,0.038]
[1734823975992,0.051558,97030.0,97029.0,0.038]
[1734823977191,0.051558,97030.0,97029.0,0.035]
[1734823977391,0.051558,97030.0,97029.0,0.038]
[1734823978792,0.06186251,97030.0,97029.0,0.005]
[1734823979095,0.07006079,97030.0,97029.0,0.005]
[1734823979594,0.07015021,97030.0,97029.0,0.005]
[1734823979796,0.07019584,97030.0,97029.0,0.005]
[1734823980384,0.07019584,97030.0,97010.0,0.0304]